bitfinex-derivatives/quotes_ETHF0:USTF0_20250404
["timestamp","ask_amount","ask_price","bid_price","bid_amount"]
[1743736410759,1.4732,1787.2,1787.1,2.56592]
[1743736413259,1.4685,1787.4,1787.3,1.11943]
[1743736413662,2.58792,1787.4,1787.2,2.55664]
[1743736413862,1.11943,1787.3,1787.2,2.55664]
[1743736414371,1.11949,1787.2,1787.1,1.1195]
[1743736414567,2.59189,1787.2,1787.1,1.1195]
[1743736419375,1.4724,1787.2,1787.1,1.1195]
[1743736419573,2.59189,1787.2,1787.1,1.1195]
[1743736419971,2.59189,1787.2,1787.1,1.11955]
[1743736420578,1.4724,1787.2,1787.1,1.11955]
[1743736420978,2.59189,1787.2,1787.1,1.11955]
[1743736421981,1.11955,1787.1,1787.0,5.78236]
[1743736422278,2.53725,1787.1,1787.0,5.78236]
[1743736422682,1.4177,1787.1,1787.0,5.78236]
[1743736422876,2.53725,1787.1,1787.0,5.78236]
[1743736425184,1.4177,1787.1,1787.0,5.78236]
[1743736425380,1.11947,1787.3,1787.2,1.11949]
[1743736425690,2.62677,1787.3,1787.2,1.11949]
[1743736425892,1.11949,1787.2,1787.1,2.5401]
[1743736426182,1.11949,1787.2,1787.1,1.4206]
[1743736426581,2.62679,1787.2,1787.1,2.54015]
[1743736426783,2.62679,1787.2,1787.1,1.4206]
[1743736427684,2.62679,1787.2,1787.1,2.54015]
[1743736428877,1.5073,1787.2,1787.1,2.54015]
[1743736429077,2.62679,1787.2,1787.1,2.54015]
[1743736431385,2.62679,1787.2,1787.1,1.11955]
[1743736432885,1.11955,1787.1,1787.0,5.82836]
[1743736433086,2.65255,1787.1,1787.0,5.82836]
[1743736434084,1.533,1787.1,1787.0,5.82836]
[1743736434678,1.4685,1787.4,1787.1,1.11955]
[1743736434888,1.5395,1787.6,1787.3,1.11943]
[1743736435085,1.11931,1787.5,1787.4,1.5296]
[1743736435585,1.11942,1787.4,1787.3,1.12782925]
[1743736435985,1.11942,1787.4,1787.3,1.12783925]
[1743736436186,1.11942,1787.4,1787.3,2.65743925]
[1743736436485,1.11942,1787.4,1787.3,1.53800925]
[1743736436685,2.61852,1787.4,1787.3,1.53800925]
[1743736436880,2.61852,1787.4,1787.3,0.00840925]
[1743736438483,2.61852,1787.4,1787.3,1.12783925]
[1743736438683,1.4991,1787.4,1787.3,1.12783925]
[1743736439383,2.9598,1787.4,1787.3,1.12783925]
[1743736439583,4.07916,1787.4,1787.3,1.12783925]
[1743736440885,1.11914,1787.8,1787.4,2.79839]
[1743736441189,4.7146,1787.9,1787.8,1.11911]
[1743736441389,1.5068,1787.9,1787.8,1.11911]
[1743736442082,1.11897,1788.1,1788.0,1.11899]
[1743736442288,1.5068,1788.2,1788.1,1.11893]
[1743736442786,1.5068,1788.2,1788.1,4.32673]
[1743736443187,2.9362,1788.2,1788.1,1.11893]
[1743736443992,0.7415,1788.2,1788.1,1.11893]
[1743736444188,2.64788,1788.4,1788.2,1.11882]
[1743736444687,2.64788,1788.4,1788.3,1.4097]
[1743736445089,2.64788,1788.4,1788.2,1.11882]
[1743736445387,1.5291,1788.3,1788.2,2.52852]
[1743736445892,2.6479,1788.3,1788.2,2.52852]
[1743736446187,2.64794,1788.3,1788.2,1.11886]
[1743736446387,2.64794,1788.3,1788.1,4.32667]
[1743736446585,1.3976,1788.2,1788.1,4.32667]
[1743736455993,2.51646,1788.2,1788.1,4.32667]
[1743736456895,2.51646,1788.2,1788.1,3.2078]
[1743736457789,1.11893,1788.1,1788.0,1.11896]
[1743736457987,4.14823,1788.1,1788.0,1.11896]
[1743736458287,1.11882,1788.3,1788.2,1.11883]
[1743736458493,7.48282,1788.5,1788.1,6.00511]
[1743736458691,5.968,1788.8,1788.3,3.2078]
[1743736458887,1.4895,1788.7,1788.6,1.11858]
[1743736459083,1.4895,1788.7,1788.6,2.61308]
[1743736459293,2.59487,1788.9,1788.6,1.4945]
[1743736459488,2.59487,1788.9,1788.7,2.61302]
[1743736459689,1.11849,1788.8,1788.7,2.61302]
[1743736459890,2.9659,1788.9,1788.8,1.11849]
[1743736460286,2.9659,1788.9,1788.8,2.61299]
[1743736460793,4.08433,1788.9,1788.8,2.61299]
[1743736460985,4.08433,1788.9,1788.8,1.4945]
[1743736461802,4.08433,1788.9,1788.8,2.61299]
[1743736461988,2.9659,1788.9,1788.8,2.61299]
[1743736462993,4.08433,1788.9,1788.8,2.61299]
[1743736463191,8.6737,1788.9,1788.5,3.2078]
[1743736463398,1.11861,1788.6,1788.5,3.2078]
[1743736463898,1.11861,1788.6,1788.5,4.32648]
[1743736464099,1.5236,1788.7,1788.6,1.11861]
[1743736464302,1.11851,1788.8,1788.6,2.62531]
[1743736464498,1.11851,1788.8,1788.7,1.5067]
[1743736465603,1.11861,1788.6,1788.5,3.2078]
[1743736465805,1.11861,1788.6,1788.5,4.32648]
[1743736466104,1.11861,1788.6,1788.5,4.7037]
[1743736466507,1.11868,1788.5,1788.4,1.84929925]
[1743736466802,1.11868,1788.5,1788.4,3.34519925]
[1743736467806,1.4992,1788.6,1788.5,1.11868]
[1743736468003,1.11861,1788.6,1788.5,2.62208]
[1743736468207,1.11861,1788.6,1788.5,1.5034]
[1743736468405,1.11861,1788.6,1788.5,2.62208]
[1743736468907,2.50878,1788.7,1788.6,1.11861]
[1743736469407,1.4764,1788.9,1788.8,1.11849]
[1743736469597,2.59483,1788.9,1788.8,1.11849]
[1743736469800,2.59483,1788.9,1788.7,2.6219]
[1743736470706,1.3902,1788.8,1788.7,2.6219]
[1743736471407,2.50869,1788.8,1788.7,2.6219]
[1743736471709,1.3902,1788.8,1788.7,2.6219]
[1743736471908,1.4764,1788.9,1788.8,1.11849]
[1743736472207,1.4764,1788.9,1788.8,2.55339]
[1743736472405,1.4387,1789.0,1788.9,1.11843]
[1743736472608,1.11835,1789.1,1788.9,2.55328]
[1743736472808,1.11835,1789.1,1789.0,2.55326]
[1743736473002,1.11835,1789.1,1789.0,1.4349]
[1743736473204,1.11835,1789.1,1789.0,2.55326]
[1743736473404,4.01019,1789.2,1789.0,2.55326]
[1743736473809,2.8919,1789.2,1789.1,5.8671]
[1743736474005,2.1536,1789.4,1789.1,4.7488]
[1743736474307,1.11824,1789.2,1789.1,5.86708]
[1743736474610,0.7171,1789.4,1789.1,4.7488]
[1743736474811,2.1536,1789.4,1789.3,1.11818]
[1743736476006,1.11818,1789.3,1789.2,1.541]
[1743736476207,1.11824,1789.2,1789.1,4.32605]
[1743736476406,1.4365,1789.3,1789.1,4.32605]
[1743736476605,1.11824,1789.2,1789.1,4.32605]
[1743736477005,2.55473,1789.3,1789.1,5.72495]
[1743736477308,1.11824,1789.2,1789.1,5.72495]
[1743736477512,1.4378,1789.2,1789.1,5.72495]
[1743736477806,1.4378,1789.2,1789.0,1.11831]
[1743736478208,2.55608,1789.2,1789.0,2.51721]
[1743736478413,2.55608,1789.2,1789.1,1.1183]
[1743736478712,1.1183,1789.1,1789.0,2.51722]
[1743736478913,2.5561,1789.1,1789.0,2.51722]
[1743736479413,1.4378,1789.1,1789.0,2.51722]
[1743736480814,1.11818,1789.3,1789.1,1.11826]
[1743736481107,2.63938,1789.3,1789.2,1.4153]
[1743736482913,2.63938,1789.3,1789.2,2.53354]
[1743736483113,1.5212,1789.3,1789.2,2.53354]
[1743736483314,1.83525,1789.4,1789.3,1.11818]
[1743736483509,1.83525,1789.4,1789.3,2.63478]
[1743736483721,3.23135,1789.4,1789.3,2.63478]
[1743736483920,3.23135,1789.4,1789.3,1.5166]
[1743736485620,3.23135,1789.4,1789.3,2.63478]
[1743736486209,1.83525,1789.4,1789.3,2.63478]
[1743736486410,0.7171,1789.4,1789.3,2.63478]
[1743736486614,1.83521,1789.4,1789.3,2.63478]
[1743736488622,2.1454,1789.5,1789.4,1.11811]
[1743736488823,3.26345,1789.5,1789.4,1.11811]
[1743736489028,3.26345,1789.5,1789.4,2.63521]
[1743736492819,1.85909,1789.8,1789.6,1.11795]
[1743736493019,0.7412,1789.8,1789.7,1.11793]
[1743736493421,0.7412,1789.8,1789.7,4.32573]
[1743736493619,0.7685,1789.9,1789.8,1.11786]
[1743736493820,0.7685,1789.9,1789.8,2.55906]
[1743736494015,2.2927,1789.9,1789.8,2.55906]
[1743736494228,3.4105,1789.9,1789.8,2.55906]
[1743736494423,2.2927,1789.9,1789.8,2.55906]
[1743736494624,1.11778,1790.0,1789.8,2.55906]
[1743736494826,2.64198,1790.0,1789.9,1.1178]
[1743736495117,1.1178,1789.9,1789.8,1.4412]
[1743736495315,1.4488,1789.9,1789.8,2.55906]
[1743736496320,2.5666,1789.9,1789.8,2.55906]
[1743736496527,1.4488,1789.9,1789.8,2.55906]
[1743736498322,2.5666,1789.9,1789.8,2.55906]
[1743736498528,1.11779,1790.0,1789.9,1.1178]
[1743736499024,1.1178,1789.9,1789.8,3.29101]
[1743736500337,2.51589,1790.0,1789.9,1.1178]
[1743736500623,2.51584,1790.0,1789.9,1.1178]
[1743736500833,2.51584,1790.0,1789.9,2.5572]
[1743736501131,1.3981,1790.0,1789.9,2.5572]
[1743736501321,1.3981,1790.0,1789.9,5.765]
[1743736501521,0.7293,1790.1,1790.0,1.11774]
[1743736501723,0.7293,1790.1,1790.0,2.65064]
[1743736501927,1.88818,1790.3,1790.2,1.11761]
[1743736502326,0.7706,1790.3,1790.2,1.11761]
[1743736502526,1.85024,1790.4,1790.3,1.11755]
[1743736502727,3.34964,1790.4,1790.3,1.11755]
[1743736503327,2.2321,1790.4,1790.3,1.11755]
[1743736503529,3.34959,1790.4,1790.3,1.11755]
[1743736503732,2.2321,1790.4,1790.3,1.11755]
[1743736504528,1.88806,1790.5,1790.4,1.11749]
[1743736504730,3.32308,1790.6,1790.5,1.11743]
[1743736504925,2.2057,1790.6,1790.5,1.11743]
[1743736505233,0.6996,1790.7,1790.6,1.11736]
[1743736505627,3.32295,1790.8,1790.7,1.1173]
[1743736506129,2.2057,1790.8,1790.7,1.1173]
[1743736506332,3.32294,1790.8,1790.7,1.1173]
[1743736506735,2.2057,1790.8,1790.6,1.5283]
[1743736506935,2.2057,1790.8,1790.6,2.64562]
[1743736506936,1.4803,1790.7,1790.6,2.64562]
[1743736507821,2.5976,1790.7,1790.6,2.64562]
[1743736508539,1.4803,1790.7,1790.6,2.64562]
[1743736509140,2.5976,1790.7,1790.6,2.64562]
[1743736509333,1.4803,1790.7,1790.6,2.64562]
[1743736509636,2.5976,1790.7,1790.6,2.64562]
[1743736510531,1.11736,1790.6,1790.5,3.2078]
[1743736510731,3.26946,1790.6,1790.5,4.32523]
[1743736511039,3.26946,1790.6,1790.5,3.2078]
[1743736512637,1.11743,1790.5,1790.4,0.00838551]
[1743736512931,1.11768,1790.1,1790.0,8.24449]
[1743736513132,1.11774,1790.0,1789.9,1.11777]
[1743736513333,3.27714,1790.0,1789.9,1.11777]
[1743736513934,1.1178,1789.9,1789.8,5.73732]
[1743736514139,1.1178,1789.9,1789.8,5.74569551]
[1743736514437,1.1178,1789.9,1789.8,3.21618551]
[1743736514828,1.1178,1789.9,1789.8,4.33404551]
[1743736515632,1.1178,1789.9,1789.8,3.21618551]
[1743736515831,1.1178,1789.9,1789.8,4.33404551]
[1743736516540,1.1178,1789.9,1789.8,3.21618551]
[1743736516842,1.1178,1789.9,1789.8,4.33404551]
[1743736517745,0.00830638,1790.1,1789.8,3.21618551]
[1743736517941,0.00830638,1790.1,1790.0,4.32554]
[1743736518440,1.4533,1790.5,1790.0,5.7078]
[1743736518640,1.11758,1790.3,1790.1,1.11768]
[1743736518841,1.11758,1790.3,1790.1,2.58158]
[1743736519046,1.11753,1790.4,1790.2,4.3254]
[1743736519240,1.11755,1790.3,1790.2,4.6717]
[1743736519444,1.11755,1790.3,1790.2,3.2078]
[1743736520042,1.11769,1790.1,1790.0,3.2078]
[1743736520237,5.58771,1790.4,1790.0,4.32554]
[1743736520442,1.11768,1790.1,1790.0,3.2078]
[1743736520642,1.11766,1790.2,1790.0,4.32552]
[1743736520942,1.11768,1790.1,1790.0,3.2078]
[1743736522941,3.61768,1790.1,1790.0,3.2078]
[1743736523144,1.118,1789.6,1789.2,10.36091607]
[1743736523339,4.32576,1789.7,1789.5,1.118]
[1743736523647,6.00264,1789.7,1789.2,5.03621]
[1743736523844,1.1182,1789.3,1789.1,0.76]
[1743736524038,1.1182,1789.3,1789.1,1.11829]
[1743736524241,0.7199,1789.4,1789.1,1.11829]
[1743736524442,2.56229,1789.3,1789.0,0.00838551]
[1743736524749,1.4441,1789.2,1789.1,1.1183]
[1743736525245,4.6519,1789.2,1789.1,1.1183]
[1743736525743,0.7199,1789.4,1789.3,1.11818]
[1743736526050,0.7584,1789.6,1789.5,1.11805]
[1743736526347,1.11812,1789.4,1789.3,1.11816]
[1743736526545,1.4152,1789.5,1789.3,1.11816]
[1743736526745,1.11812,1789.4,1789.1,5.04984]
[1743736527145,1.4152,1789.3,1789.1,5.04984]
[1743736527348,1.4152,1789.3,1789.2,1.11824]
[1743736527548,0.7584,1789.6,1789.2,6.71445]
[1743736527848,2.53315,1789.7,1789.5,1.11803]
[1743736528649,1.4152,1789.7,1789.5,1.11803]
[1743736528836,1.4152,1789.7,1789.6,1.11799]
[1743736529748,5.81927,1789.8,1789.6,1.11799]
[1743736529944,5.81927,1789.8,1789.7,1.11793]
[1743736529945,6.1244,1789.8,1789.7,1.11793]
[1743736530145,7.24228,1789.8,1789.6,1.11794]
[1743736530647,1.11793,1789.7,1789.6,1.11794]
[1743736530841,2.54093,1789.7,1789.6,1.11794]
[1743736531040,1.423,1789.7,1789.6,1.11794]
[1743736531846,2.54093,1789.7,1789.6,1.11794]
[1743736532240,1.423,1789.7,1789.6,1.11794]
[1743736532541,1.11799,1789.6,1789.5,1.11801]
[1743736532747,1.11805,1789.6,1789.4,1.11808]
[1743736532944,2.58429,1789.5,1789.3,1.475]
[1743736533247,3.32489,1789.5,1789.4,1.11811]
[1743736533446,1.85869,1789.5,1789.4,1.11811]
[1743736533942,0.7406,1789.5,1789.4,1.11811]
[1743736534648,1.85865,1789.5,1789.4,2.65961]
[1743736534848,0.7406,1789.5,1789.4,2.65961]
[1743736535050,1.85865,1789.5,1789.4,2.65961]
[1743736535250,0.7406,1789.5,1789.4,2.65961]
[1743736536243,4.3258,1789.6,1789.5,1.11805]
[1743736536439,3.2078,1789.6,1789.5,2.65955]
[1743736536644,1.4783,1789.8,1789.7,1.11793]
[1743736537049,3.21618551,1790.2,1789.9,1.1178]
[1743736537250,3.21618551,1790.2,1790.1,1.11768]
[1743736538052,3.21618551,1790.2,1790.1,2.57958]
[1743736538249,4.33379551,1790.2,1790.1,1.4619]
[1743736538552,1.11768,1790.1,1790.0,0.00838551]
[1743736540049,1.11768,1790.1,1790.0,1.12612551]
[1743736540249,1.11768,1790.1,1790.0,0.00838551]
[1743736540450,1.11768,1790.1,1790.0,1.12612551]
[1743736541347,4.33384551,1790.2,1790.1,1.11768]
[1743736541747,3.21618551,1790.2,1790.1,2.57408]
[1743736541948,3.21618551,1790.2,1790.1,3.31958]
[1743736542150,0.00838551,1790.2,1790.1,3.31958]
[1743736542949,1.12599551,1790.2,1790.1,3.31958]
[1743736543252,1.11768,1790.1,1790.0,1.12607551]
[1743736543452,1.84418,1790.1,1790.0,0.00838551]
[1743736544260,5.05198,1790.1,1790.0,0.00838551]
[1743736544450,6.56968,1790.1,1790.0,0.00838551]
[1743736549955,1.11786,1789.8,1789.7,1.5339]
[1743736550258,1.11799,1789.6,1789.5,1.11802]
[1743736550554,1.11811,1789.4,1789.3,2.65204]
[1743736551858,2.65211,1789.4,1789.3,2.65204]
[1743736552456,1.534,1789.4,1789.3,2.65204]
[1743736553461,2.65211,1789.4,1789.3,1.5339]
[1743736555855,2.65211,1789.4,1789.3,2.65208]
[1743736556058,1.11811,1789.4,1789.3,2.65202]
[1743736556260,4.3259,1789.5,1789.3,2.65202]
[1743736556563,4.3259,1789.5,1789.4,1.4086]
[1743736556762,5.7216,1789.5,1789.4,1.4086]
[1743736557163,1.11818,1789.3,1789.2,0.73378551]
[1743736557458,1.11818,1789.3,1789.2,0.00838551]
[1743736557761,4.32598,1789.3,1789.2,0.00838551]
[1743736557961,6.45788,1789.3,1789.2,0.00838551]
[1743736558359,8.95788,1789.3,1789.2,0.00838551]
[1743736558660,1.11849,1788.8,1788.7,1.4086]
[1743736558849,1.11849,1788.8,1788.7,2.52711]
[1743736559564,2.55009,1788.8,1788.7,2.52711]
[1743736559761,1.4316,1788.8,1788.7,2.52711]
[1743736560466,2.55009,1788.8,1788.7,2.52711]
[1743736560661,1.4316,1788.8,1788.7,2.52711]
[1743736561158,0.00838551,1788.9,1788.8,1.11849]
[1743736561358,0.00838551,1788.9,1788.8,2.65989]
[1743736564062,0.00838551,1788.9,1788.8,5.15989]
[1743736566570,0.00838551,1788.9,1788.8,2.65989]
[1743736567264,0.00838551,1788.9,1788.8,1.5414]
[1743736567565,1.11855,1788.7,1788.6,6.16578551]
[1743736567768,1.11855,1788.7,1788.6,3.36839551]
[1743736568269,2.2743,1788.8,1788.6,2.24978551]
[1743736568465,2.2743,1788.8,1788.7,1.11855]
[1743736568667,2.2743,1788.8,1788.7,2.54535]
[1743736568868,3.39279,1788.8,1788.7,2.54535]
[1743736569169,3.39279,1788.8,1788.7,1.4268]
[1743736569358,3.39279,1788.8,1788.7,2.54535]
[1743736569764,2.2743,1788.8,1788.7,2.54535]
[1743736570562,1.12686551,1788.9,1788.8,1.11849]
[1743736570765,1.12686551,1788.9,1788.8,1.4268]
[1743736571070,2.66686551,1788.9,1788.8,2.54529]
[1743736571671,2.66686551,1788.9,1788.8,1.4268]
[1743736572366,1.54838551,1788.9,1788.6,2.56784551]
[1743736572574,2.53124,1788.8,1788.7,1.11855]
[1743736572869,1.4127,1788.8,1788.7,1.11855]
[1743736573071,2.53119,1788.8,1788.7,1.11855]
[1743736573270,2.53119,1788.8,1788.7,1.4197]
[1743736573471,2.53119,1788.8,1788.7,2.53825]
[1743736574970,1.11855,1788.7,1788.6,1.12698551]
[1743736575172,3.27555,1788.7,1788.6,1.12698551]
[1743736575874,3.27555,1788.7,1788.6,0.00838551]
[1743736576262,4.95349,1788.7,1788.3,1.11876]
[1743736576467,1.1188,1788.3,1788.2,1.11885]
[1743736576667,2.7967,1788.5,1788.1,3.9379]
[1743736576668,1.11886,1788.2,1788.1,4.32668]
[1743736576876,1.4403,1788.2,1788.1,5.84688]
[1743736577476,2.55916,1788.2,1788.1,5.84688]
[1743736577773,3.26926,1788.2,1788.1,1.5202]
[1743736577979,3.26926,1788.2,1788.1,2.63913]
[1743736578175,2.1504,1788.2,1788.1,2.63913]
[1743736578576,3.26926,1788.2,1788.1,2.63913]
[1743736578873,2.1504,1788.2,1788.1,2.63913]
[1743736579073,3.26926,1788.2,1788.1,2.63913]
[1743736579278,2.1504,1788.2,1788.1,2.63913]
[1743736581787,1.11893,1788.1,1788.0,0.00838551]
[1743736581977,1.81743,1788.1,1788.0,0.00838551]
[1743736582179,3.24053,1788.1,1788.0,0.00838551]
[1743736582581,3.9179,1788.2,1788.1,1.11893]
[1743736582781,5.03676,1788.2,1788.1,2.53953]
[1743736583080,1.11893,1788.1,1788.0,0.00838551]
[1743736583282,1.4231,1788.1,1788.0,1.12737551]
[1743736584181,2.54203,1788.1,1788.0,1.12737551]
[1743736584486,2.54203,1788.1,1788.0,0.00838551]
[1743736584680,2.54203,1788.1,1788.0,1.12737551]
[1743736584879,2.54203,1788.1,1788.0,0.00838551]
[1743736585576,1.1193,1787.5,1787.4,0.703]
[1743736585882,1.11932,1787.5,1787.3,2.56927]
[1743736586281,1.532,1787.4,1787.3,2.56927]
[1743736586685,2.65136,1787.4,1787.3,2.56927]
[1743736586887,1.532,1787.4,1787.3,2.56927]
[1743736587084,1.11943,1787.3,1787.2,0.00838551]
[1743736587785,2.79866,1787.3,1786.9,1.11966]
[1743736587982,1.11964,1787.0,1786.8,1.11971]
[1743736588289,1.11967,1787.0,1786.8,1.11974]
[1743736588586,1.5419,1786.9,1786.8,2.63864]
[1743736590080,2.66158,1786.9,1786.7,1.88607034]
[1743736590276,1.5419,1786.9,1786.7,2.29639034]
[1743736590481,4.32754,1786.8,1786.7,0.00559034]
[1743736595791,4.32754,1786.8,1786.7,1.12539034]
[1743736596293,1.5419,1786.9,1786.8,1.11974]
[1743736596893,1.5419,1786.9,1786.8,2.58544]
[1743736597587,2.66158,1786.9,1786.8,2.58544]
[1743736597787,1.5419,1786.9,1786.8,2.58544]
[1743736598089,2.66158,1786.9,1786.8,2.58544]
[1743736598582,2.66158,1786.9,1786.8,1.4657]
[1743736598992,1.11974,1786.8,1786.7,1.12536034]
[1743736599190,2.53464,1786.8,1786.7,1.12536034]
[1743736599488,1.4149,1786.8,1786.7,1.12536034]
[1743736602789,2.53464,1786.8,1786.7,1.12536034]
[1743736602992,5.74244,1786.8,1786.7,0.00559034]
[1743736604092,5.74244,1786.8,1786.7,1.12539034]
[1743736604591,5.74244,1786.8,1786.7,0.00559034]
[1743736605194,5.74244,1786.8,1786.7,1.12539034]
[1743736605496,1.4149,1786.8,1786.7,1.12539034]
[1743736606084,5.79656,1787.0,1786.7,1.12539034]
[1743736606085,3.2078,1787.2,1786.9,3.91886]
[1743736606284,8.77478551,1787.5,1787.3,1.11943]
[1743736606285,0.7434,1787.4,1787.3,1.11943]
[1743736606485,0.7434,1787.4,1787.2,1.5249]
[1743736606793,1.4367,1787.3,1787.2,2.64438]
[1743736607089,0.7434,1787.4,1787.3,1.11943]
[1743736607392,4.65288551,1787.5,1787.4,1.11936]
[1743736607895,1.1194,1787.4,1787.3,1.11943]
[1743736608101,2.5456,1787.4,1787.3,1.11943]
[1743736608397,1.11943,1787.3,1787.2,1.11947]
[1743736608587,2.9065,1787.3,1787.2,1.11947]
[1743736609497,4.33552551,1787.5,1787.3,1.11939]
[1743736609792,1.4262,1787.4,1787.3,1.11939]
[1743736610697,2.54556,1787.4,1787.3,1.11939]
[1743736610887,1.4262,1787.4,1787.3,1.11939]
[1743736611086,2.54556,1787.4,1787.3,1.11939]
[1743736611490,2.54556,1787.4,1787.2,2.52835]
[1743736611691,1.4677,1787.3,1787.2,2.52835]
[1743736612497,4.69648551,1787.5,1787.2,1.11946]
[1743736612697,2.58711,1787.4,1787.3,1.11943]
[1743736613902,1.4677,1787.4,1787.3,1.11943]
[1743736614107,1.48868551,1787.5,1787.4,1.11936]
[1743736614600,3.02178551,1787.5,1787.4,1.11936]
[1743736614999,0.00838551,1787.5,1787.4,2.56626]
[1743736615304,0.00838551,1787.5,1787.4,3.33166]
[1743736616101,0.00838551,1787.5,1787.4,2.56626]
[1743736616291,1.54148551,1787.5,1787.4,2.56626]
[1743736616494,0.00838551,1787.5,1787.4,2.56626]
[1743736617504,0.00838551,1787.5,1787.4,5.77406]
[1743736617805,0.00838551,1787.5,1787.4,3.26926]
[1743736618409,0.00838551,1787.5,1787.4,6.47706]
[1743736619100,0.00838551,1787.5,1787.4,8.97706]
[1743736619501,0.00838551,1787.5,1787.4,6.47706]
[1743736619901,0.00838551,1787.5,1787.4,6.93118999]
[1743736620206,0.00838551,1787.5,1787.4,3.72338999]
[1743736620409,0.00838551,1787.5,1787.4,3.26926]
[1743736620911,0.00838551,1787.5,1787.4,6.47706]
[1743736622709,0.00838551,1787.5,1787.4,3.26926]
[1743736622909,3.21618551,1787.5,1787.2,1.11945]
[1743736623107,1.11948,1787.3,1787.1,7.08952]
[1743736623311,1.4612,1787.2,1787.1,8.55502]
[1743736624006,0.7652,1787.3,1787.2,1.11949]
[1743736624201,2.1827,1787.4,1787.3,1.11943]
[1743736624810,2.1827,1787.4,1787.3,2.58493]
[1743736626712,0.00838551,1787.5,1787.4,1.11936]
[1743736626926,0.00838551,1787.5,1787.4,2.56876]
[1743736629229,0.00838551,1787.5,1787.4,5.06876]
[1743736629525,0.00838551,1787.5,1787.4,8.27656]
[1743736629724,2.863,1787.9,1787.8,1.11911]
[1743736630129,0.7112,1787.9,1787.8,1.11911]
[1743736630824,0.7412,1788.1,1787.8,4.29105]
[1743736631030,0.00838551,1788.0,1787.9,1.83795]
[1743736631227,3.949,1788.6,1788.3,1.1188]
[1743736631526,0.7412,1788.6,1788.5,1.11868]
[1743736631930,2.1518,1788.6,1788.5,1.11868]
[1743736632634,3.27041,1788.6,1788.5,1.11868]
[1743736633030,2.1518,1788.6,1788.5,1.11868]
[1743736633227,1.4106,1788.6,1788.5,1.11868]
[1743736633427,0.00838551,1788.7,1788.6,1.11861]
[1743736633637,0.00838551,1788.7,1788.6,2.56171]
[1743736635324,0.00838551,1788.7,1788.6,5.76951]
[1743736636437,1.4391,1789.0,1788.9,1.11843]
[1743736637234,1.4391,1789.0,1788.9,2.51433]
[1743736637632,1.4391,1789.0,1788.9,1.11843]
[1743736638338,1.4391,1789.0,1788.9,2.55933]
[1743736640633,2.55746,1789.0,1788.8,1.12681551]
[1743736640933,4.32623,1788.9,1788.8,0.00838551]
[1743736641137,1.11869,1788.5,1788.2,3.2078]
[1743736641437,1.4445,1788.4,1788.3,1.1188]
[1743736641734,2.56324,1788.4,1788.2,2.62131]
[1743736641936,3.98404,1788.4,1788.2,2.62131]
[1743736642328,1.1188,1788.3,1788.2,2.62131]
[1743736642528,1.4445,1788.3,1788.2,2.62131]
[1743736644338,0.7236,1788.4,1788.3,1.1188]
[1743736644930,2.2214,1788.4,1788.3,1.1188]
[1743736645443,3.9284,1788.6,1788.5,1.11868]
[1743736646134,2.61639,1788.7,1788.5,1.11865]
[1743736646439,1.4978,1788.7,1788.6,1.11861]
[1743736646739,0.7225,1788.8,1788.7,1.11855]
[1743736646933,3.33683,1788.9,1788.8,1.11849]
[1743736647239,2.2184,1788.9,1788.8,1.11849]
[1743736647438,3.2078,1789.0,1788.9,1.11843]
[1743736647839,0.73088551,1789.1,1789.0,1.11836]
[1743736648440,2.20998551,1789.1,1789.0,1.11836]
[1743736649037,3.32828551,1789.1,1789.0,1.11836]
[1743736649241,3.32828551,1789.1,1788.9,2.63058]
[1743736649538,3.32832551,1789.1,1788.9,1.11843]
[1743736650240,3.32832551,1789.1,1789.0,1.11836]
[1743736650442,3.32832551,1789.1,1788.9,1.11837]
[1743736650941,2.20998551,1789.1,1788.9,1.11837]
[1743736651239,3.32832551,1789.1,1788.9,1.11837]
[1743736651637,3.32832551,1789.1,1788.8,4.72]
[1743736651838,3.32832551,1789.1,1789.0,1.11836]
[1743736652039,3.32832551,1789.1,1788.8,4.72]
[1743736652338,2.20998551,1789.1,1788.9,1.11843]
[1743736652535,3.32831551,1789.1,1788.9,1.11843]
[1743736652734,3.32831551,1789.1,1789.0,1.11836]
[1743736654741,1.11837,1789.0,1788.9,1.11837]
[1743736654942,2.50867,1789.0,1788.9,1.11837]
[1743736655243,0.00838551,1789.1,1789.0,1.11836]
[1743736656144,0.00838551,1789.1,1789.0,1.88706]
[1743736656444,0.00838551,1789.1,1789.0,5.09486]
[1743736657038,0.00838551,1789.1,1789.0,5.85146]
[1743736658338,0.00838551,1789.1,1789.0,9.75746]
[1743736658747,2.1361,1789.4,1789.3,1.11818]
[1743736659242,0.7458,1789.4,1789.3,1.11818]
[1743736659448,2.2812,1789.6,1789.5,1.11805]
[1743736659742,0.7538,1789.9,1789.8,1.11786]
[1743736660342,1.87161,1789.9,1789.7,1.11788]
[1743736660543,3.39241,1789.9,1789.7,1.4587]
[1743736660842,3.39241,1789.9,1789.7,2.5766]
[1743736661345,2.2746,1789.9,1789.8,1.11786]
[1743736661644,3.3924,1789.9,1789.7,2.57657]
[1743736661942,2.2746,1789.9,1789.8,1.11786]
[1743736662144,3.3924,1789.9,1789.7,2.57657]
[1743736662542,2.2746,1789.9,1789.8,1.11786]
[1743736664042,0.00838551,1790.0,1789.9,1.1178]
[1743736664542,0.00838551,1790.0,1789.9,3.6178]
[1743736664944,0.00838551,1790.0,1789.9,5.0245]
[1743736667442,4.32521,1790.6,1790.4,1.11747]
[1743736667645,2.51585,1790.7,1790.3,6.69788]
[1743736667945,2.51585,1790.7,1790.5,1.1174]
[1743736668443,1.3985,1790.7,1790.6,1.11736]